[Event "Early-Titled-Tuesday-Blitz-October-10-2023"]
[Site "Chess.com"]
[Date "2023.10.10"]
[Round "3"]
[White "Fh2411"]
[Black "UK_23"]
[Result "1-0"]
[WhiteElo "2571"]
[BlackElo "2381"]
[TimeControl "180+1"]
[EndTime "8:27:46 PDT"]
[Termination "Fh2411 won by resignation"]

1. d4 {[%clk 0:02:56.8]} 1... d5 {[%clk 0:02:56.3]} 2. Nf3 {[%clk 0:02:56.8]}
2... Nf6 {[%clk 0:02:56.4]} 3. Bf4 {[%clk 0:02:57.4]} 3... c5 {[%clk 0:02:56]}
4. e3 {[%clk 0:02:57.9]} 4... Nc6 {[%clk 0:02:56.4]} 5. Nbd2 {[%clk 0:02:58.4]}
5... Bg4 {[%clk 0:02:56.7]} 6. c3 {[%clk 0:02:53.9]} 6... e6 {[%clk 0:02:56.9]}
7. Qb3 {[%clk 0:02:54.4]} 7... Qc8 {[%clk 0:02:56.6]} 8. Ne5 {[%clk 0:02:53.5]}
8... Nxe5 {[%clk 0:02:50.3]} 9. Bxe5 {[%clk 0:02:52.9]} 9... Nd7 {[%clk
0:02:46.4]} 10. Bb5 {[%clk 0:02:46.4]} 10... a6 {[%clk 0:02:39.5]} 11. Bxd7+
{[%clk 0:02:46.1]} 11... Qxd7 {[%clk 0:02:39.9]} 12. c4 {[%clk 0:02:40.6]} 12...
cxd4 {[%clk 0:02:38.1]} 13. Bxd4 {[%clk 0:02:34.7]} 13... f6 {[%clk 0:02:11.7]}
14. cxd5 {[%clk 0:02:15.3]} 14... exd5 {[%clk 0:02:11.7]} 15. h3 {[%clk
0:02:09.4]} 15... Bh5 {[%clk 0:02:07.8]} 16. Rc1 {[%clk 0:02:03.9]} 16... Be7
{[%clk 0:01:44.4]} 17. O-O {[%clk 0:01:58.1]} 17... O-O {[%clk 0:01:41.1]} 18.
Qb6 {[%clk 0:01:51.3]} 18... Rac8 {[%clk 0:01:37.7]} 19. Nb3 {[%clk 0:01:50]}
19... Bf7 {[%clk 0:01:34.8]} 20. Na5 {[%clk 0:01:43.2]} 20... Bd8 {[%clk
0:00:57.5]} 21. Qxb7 {[%clk 0:01:36.5]} 21... Qxb7 {[%clk 0:00:56.3]} 22. Nxb7
{[%clk 0:01:37.4]} 22... Rb8 {[%clk 0:00:56.2]} 23. Nxd8 {[%clk 0:01:03.8]}
23... Rfxd8 {[%clk 0:00:55.1]} 24. Rc7 {[%clk 0:01:03.1]} 24... Rdc8 {[%clk
0:00:53.5]} 25. Rfc1 {[%clk 0:01:02.7]} 25... Be6 {[%clk 0:00:52.5]} 26. R1c6
{[%clk 0:00:51.3]} 26... Rxc7 {[%clk 0:00:46.7]} 27. Rxc7 {[%clk 0:00:52.2]}
27... Rc8 {[%clk 0:00:40.9]} 28. Ra7 {[%clk 0:00:52.3]} 28... Rc6 {[%clk
0:00:40.9]} 29. Kh2 {[%clk 0:00:49.1]} 29... h5 {[%clk 0:00:41.3]} 30. Kg3
{[%clk 0:00:45.7]} 30... Bf7 {[%clk 0:00:36]} 31. a4 {[%clk 0:00:34.6]} 31...
Be6 {[%clk 0:00:33.3]} 32. b4 {[%clk 0:00:33.1]} 32... Bf7 {[%clk 0:00:26.3]}
33. b5 {[%clk 0:00:26.1]} 33... axb5 {[%clk 0:00:26.5]} 34. axb5 {[%clk
0:00:27]} 34... Rc8 {[%clk 0:00:22.9]} 35. b6 {[%clk 0:00:27.1]} 35... Rb8
{[%clk 0:00:23.5]} 36. b7 {[%clk 0:00:25]} 36... Kh7 {[%clk 0:00:23.7]} 37. Bc5
{[%clk 0:00:23.2]} 1-0

[Event "Early-Titled-Tuesday-Blitz-October-10-2023"]
[Site "Chess.com"]
[Date "2023.10.10"]
[Round "3"]
[White "SmirnovAlexandrA"]
[Black "WindWhistler11"]
[Result "1-0"]
[WhiteElo "2637"]
[BlackElo "2460"]
[TimeControl "180+1"]
[EndTime "8:27:48 PDT"]
[Termination "SmirnovAlexandrA won on time"]

1. e4 {[%clk 0:03:00.9]} 1... e6 {[%clk 0:02:58.3]} 2. d4 {[%clk 0:02:59.3]}
2... d5 {[%clk 0:02:58.9]} 3. e5 {[%clk 0:02:58]} 3... c5 {[%clk 0:02:58.3]} 4.
c3 {[%clk 0:02:56.9]} 4... Nc6 {[%clk 0:02:58.9]} 5. Nf3 {[%clk 0:02:54.5]} 5...
Bd7 {[%clk 0:02:59.6]} 6. Be2 {[%clk 0:02:49.4]} 6... Nge7 {[%clk 0:03:00.3]} 7.
O-O {[%clk 0:02:46]} 7... cxd4 {[%clk 0:03:00.6]} 8. cxd4 {[%clk 0:02:44.2]}
8... Nf5 {[%clk 0:03:01.3]} 9. Nc3 {[%clk 0:02:37.8]} 9... Be7 {[%clk 0:03:02]}
10. Be3 {[%clk 0:02:33.5]} 10... O-O {[%clk 0:02:59.7]} 11. Qd2 {[%clk
0:02:29.9]} 11... f6 {[%clk 0:02:57.3]} 12. Rac1 {[%clk 0:02:25.2]} 12... fxe5
{[%clk 0:02:55.2]} 13. dxe5 {[%clk 0:02:25.7]} 13... Nxe3 {[%clk 0:02:44.7]} 14.
Qxe3 {[%clk 0:02:22.7]} 14... Be8 {[%clk 0:02:42.5]} 15. Nd4 {[%clk 0:02:19.3]}
15... Nxd4 {[%clk 0:02:19.8]} 16. Qxd4 {[%clk 0:02:20.2]} 16... b6 {[%clk
0:02:19.9]} 17. Rfd1 {[%clk 0:02:12.3]} 17... Bc5 {[%clk 0:02:14.9]} 18. Qg4
{[%clk 0:02:08.1]} 18... Bxf2+ {[%clk 0:02:07.2]} 19. Kh1 {[%clk 0:02:08]} 19...
Qe7 {[%clk 0:02:04.3]} 20. Rf1 {[%clk 0:02:01.6]} 20... Bg6 {[%clk 0:01:58.5]}
21. Bf3 {[%clk 0:01:44.7]} 21... Be3 {[%clk 0:01:54.4]} 22. Rce1 {[%clk
0:01:40.9]} 22... Bd2 {[%clk 0:01:48.9]} 23. Rd1 {[%clk 0:01:38.8]} 23... Bh6
{[%clk 0:01:43.9]} 24. Nxd5 {[%clk 0:01:02.1]} 24... exd5 {[%clk 0:01:42.8]} 25.
Bxd5+ {[%clk 0:01:02.7]} 25... Kh8 {[%clk 0:01:43.4]} 26. Bxa8 {[%clk
0:00:59.6]} 26... Rxa8 {[%clk 0:01:43.1]} 27. e6 {[%clk 0:00:48.8]} 27... Re8
{[%clk 0:00:15.2]} 28. Rd7 {[%clk 0:00:45.8]} 28... Qg5 {[%clk 0:00:15.8]} 29.
e7 {[%clk 0:00:30.8]} 29... Qc5 {[%clk 0:00:02.1]} 30. Qd4 {[%clk 0:00:18.4]}
1-0

[Event "Early-Titled-Tuesday-Blitz-October-10-2023"]
[Site "Chess.com"]
[Date "2023.10.10"]
[Round "3"]
[White "DarZay"]
[Black "Lady_Nika"]
[Result "1-0"]
[WhiteElo "2240"]
[BlackElo "2528"]
[TimeControl "180+1"]
[EndTime "8:27:48 PDT"]
[Termination "DarZay won by checkmate"]

1. e4 {[%clk 0:02:58.2]} 1... e6 {[%clk 0:02:59.4]} 2. d4 {[%clk 0:02:57.3]}
2... d5 {[%clk 0:02:59.7]} 3. Bd3 {[%clk 0:02:54.8]} 3... Nf6 {[%clk 0:02:59.9]}
4. e5 {[%clk 0:02:53.7]} 4... Nfd7 {[%clk 0:03:00.1]} 5. c3 {[%clk 0:02:52]}
5... c5 {[%clk 0:03:00.4]} 6. f4 {[%clk 0:02:49.5]} 6... Nc6 {[%clk 0:03:00.7]}
7. Nf3 {[%clk 0:02:49.2]} 7... a6 {[%clk 0:03:01.1]} 8. Qc2 {[%clk 0:02:41.4]}
8... b5 {[%clk 0:03:00.3]} 9. O-O {[%clk 0:02:37.1]} 9... Qb6 {[%clk 0:02:57.6]}
10. Be3 {[%clk 0:02:33.2]} 10... cxd4 {[%clk 0:02:56]} 11. Nxd4 {[%clk
0:02:24.7]} 11... Bc5 {[%clk 0:02:55.6]} 12. Qf2 {[%clk 0:02:24]} 12... Bxd4
{[%clk 0:02:51.1]} 13. cxd4 {[%clk 0:02:23.6]} 13... g6 {[%clk 0:02:51.4]} 14.
a3 {[%clk 0:02:21.2]} 14... Bb7 {[%clk 0:02:50.5]} 15. Nd2 {[%clk 0:02:20.3]}
15... O-O-O {[%clk 0:02:49.1]} 16. Nb3 {[%clk 0:02:10.3]} 16... Kb8 {[%clk
0:02:48.1]} 17. Nc5 {[%clk 0:02:05.3]} 17... Nxc5 {[%clk 0:02:48.3]} 18. dxc5
{[%clk 0:02:05.1]} 18... Qc7 {[%clk 0:02:48.6]} 19. Bd4 {[%clk 0:01:53.5]} 19...
Rc8 {[%clk 0:02:45.1]} 20. b4 {[%clk 0:01:52.9]} 20... h5 {[%clk 0:02:38.6]} 21.
h4 {[%clk 0:01:49.5]} 21... Qe7 {[%clk 0:02:32.5]} 22. g3 {[%clk 0:01:48.5]}
22... Rcf8 {[%clk 0:02:28.4]} 23. Rfb1 {[%clk 0:01:43.7]} 23... Nxd4 {[%clk
0:02:28.3]} 24. Qxd4 {[%clk 0:01:43.2]} 24... f6 {[%clk 0:02:28.5]} 25. a4
{[%clk 0:01:36.7]} 25... Bc6 {[%clk 0:01:58.3]} 26. axb5 {[%clk 0:01:36.2]}
26... axb5 {[%clk 0:01:58.3]} 27. Ra6 {[%clk 0:01:35.4]} 27... Kb7 {[%clk
0:01:58.6]} 28. Rba1 {[%clk 0:01:19.1]} 28... Ra8 {[%clk 0:01:28.4]} 29. Rb6+
{[%clk 0:01:18.9]} 29... Kc7 {[%clk 0:01:25.8]} 30. Bxb5 {[%clk 0:01:18.7]}
30... Bxb5 {[%clk 0:01:20.8]} 31. Rxb5 {[%clk 0:01:18.9]} 31... Qd7 {[%clk
0:01:01.1]} 32. c6 {[%clk 0:01:06.4]} 32... Qxc6 {[%clk 0:00:09.1]} 33. Rc5
{[%clk 0:01:03.8]} 33... fxe5 {[%clk 0:00:09.1]} 34. Qxe5+ {[%clk 0:01:01.8]}
34... Kb7 {[%clk 0:00:08.1]} 35. Rxc6 {[%clk 0:01:01.2]} 35... Kxc6 {[%clk
0:00:07.7]} 36. Rc1+ {[%clk 0:00:58.4]} 36... Kb5 {[%clk 0:00:07.3]} 37. Qxe6
{[%clk 0:00:58.8]} 37... Rhd8 {[%clk 0:00:06.7]} 38. Qc6+ {[%clk 0:00:50.3]}
38... Kxb4 {[%clk 0:00:05.9]} 39. Rb1+ {[%clk 0:00:50.4]} 39... Ka3 {[%clk
0:00:04.4]} 40. Qc3+ {[%clk 0:00:50.1]} 40... Ka4 {[%clk 0:00:04.7]} 41. Qb4#
{[%clk 0:00:50.2]} 1-0

[Event "Early-Titled-Tuesday-Blitz-October-10-2023"]
[Site "Chess.com"]
[Date "2023.10.10"]
[Round "3"]
[White "MartinMatthiesen"]
[Black "LamaChampetre"]
[Result "1-0"]
[WhiteElo "2469"]
[BlackElo "2246"]
[TimeControl "180+1"]
[EndTime "8:27:50 PDT"]
[Termination "MartinMatthiesen won on time"]

1. Nf3 {[%clk 0:02:58.9]} 1... g6 {[%clk 0:02:57.8]} 2. e4 {[%clk 0:02:57.4]}
2... c5 {[%clk 0:02:57]} 3. d4 {[%clk 0:02:55.7]} 3... cxd4 {[%clk 0:02:57.9]}
4. Nxd4 {[%clk 0:02:56.2]} 4... Nc6 {[%clk 0:02:57.6]} 5. c4 {[%clk 0:02:55.7]}
5... Bg7 {[%clk 0:02:53.5]} 6. Be3 {[%clk 0:02:55.2]} 6... Nf6 {[%clk
0:02:51.7]} 7. Nc3 {[%clk 0:02:54.6]} 7... Ng4 {[%clk 0:02:52]} 8. Qxg4 {[%clk
0:02:53.7]} 8... Nxd4 {[%clk 0:02:52]} 9. Qd1 {[%clk 0:02:52.9]} 9... e5 {[%clk
0:02:52.1]} 10. Bd3 {[%clk 0:02:45.7]} 10... O-O {[%clk 0:02:51.5]} 11. O-O
{[%clk 0:02:45.2]} 11... d6 {[%clk 0:02:50.1]} 12. Nb5 {[%clk 0:02:42.1]} 12...
Nxb5 {[%clk 0:02:33.1]} 13. cxb5 {[%clk 0:02:43]} 13... Be6 {[%clk 0:02:31]} 14.
Qa4 {[%clk 0:02:04.6]} 14... d5 {[%clk 0:02:23.8]} 15. exd5 {[%clk 0:02:01.2]}
15... Bxd5 {[%clk 0:02:23.1]} 16. Rfd1 {[%clk 0:01:59.9]} 16... Qf6 {[%clk
0:01:44.1]} 17. Bxg6 {[%clk 0:01:43.1]} 17... Bxg2 {[%clk 0:01:32.3]} 18. Bxh7+
{[%clk 0:01:42.7]} 18... Kxh7 {[%clk 0:01:32.1]} 19. Kxg2 {[%clk 0:01:42.7]}
19... Bh6 {[%clk 0:01:14.5]} 20. Qe4+ {[%clk 0:01:31.8]} 20... Kh8 {[%clk
0:01:10.7]} 21. Bxh6 {[%clk 0:01:28.3]} 21... Rg8+ {[%clk 0:01:08.5]} 22. Kh1
{[%clk 0:01:16.8]} 22... Qxh6 {[%clk 0:00:44.9]} 23. Qxe5+ {[%clk 0:00:51.1]}
23... f6 {[%clk 0:00:43.3]} 24. Qe3 {[%clk 0:00:44.3]} 24... Qh5 {[%clk
0:00:23]} 25. Rg1 {[%clk 0:00:37.5]} 25... Rae8 {[%clk 0:00:16.8]} 26. Qf4
{[%clk 0:00:32.5]} 26... Qd5+ {[%clk 0:00:13.5]} 27. f3 {[%clk 0:00:32]} 27...
Qf7 {[%clk 0:00:04.6]} 28. Qh6+ {[%clk 0:00:29.7]} 28... Qh7 {[%clk 0:00:03.3]}
29. Qxf6+ {[%clk 0:00:29.7]} 29... Rg7 {[%clk 0:00:03.8]} 30. Rae1 {[%clk
0:00:21.3]} 30... Rxe1 {[%clk 0:00:01.4]} 31. Rxe1 {[%clk 0:00:20.5]} 1-0

[Event "Early-Titled-Tuesday-Blitz-October-10-2023"]
[Site "Chess.com"]
[Date "2023.10.10"]
[Round "3"]
[White "KejJaj"]
[Black "AsaHoffmann"]
[Result "0-1"]
[WhiteElo "2187"]
[BlackElo "2402"]
[TimeControl "180+1"]
[EndTime "8:27:53 PDT"]
[Termination "AsaHoffmann won by checkmate"]

1. d4 {[%clk 0:03:00.9]} 1... Nf6 {[%clk 0:00:52.6]} 2. Bf4 {[%clk 0:03:01]}
2... d6 {[%clk 0:00:51.7]} 3. Nc3 {[%clk 0:02:56.2]} 3... c6 {[%clk 0:00:49.9]}
4. e4 {[%clk 0:02:54.8]} 4... b5 {[%clk 0:00:41.9]} 5. Bd3 {[%clk 0:02:50.3]}
5... a6 {[%clk 0:00:39]} 6. f3 {[%clk 0:02:47.8]} 6... Nbd7 {[%clk 0:00:33.5]}
7. Qd2 {[%clk 0:02:42.6]} 7... e5 {[%clk 0:00:32.9]} 8. Be3 {[%clk 0:02:40.7]}
8... Be7 {[%clk 0:00:31.6]} 9. g4 {[%clk 0:02:34.5]} 9... Bb7 {[%clk 0:00:29.1]}
10. O-O-O {[%clk 0:02:29.6]} 10... Qc7 {[%clk 0:00:26.3]} 11. h4 {[%clk
0:02:14.1]} 11... h6 {[%clk 0:00:24.5]} 12. Nh3 {[%clk 0:02:13.2]} 12... Nb6
{[%clk 0:00:23.5]} 13. Qe2 {[%clk 0:02:06.4]} 13... Nfd7 {[%clk 0:00:20.9]} 14.
g5 {[%clk 0:01:59.4]} 14... O-O-O {[%clk 0:00:18.4]} 15. Kb1 {[%clk 0:01:52.9]}
15... hxg5 {[%clk 0:00:18]} 16. Nxg5 {[%clk 0:01:47.8]} 16... Rdf8 {[%clk
0:00:17.3]} 17. f4 {[%clk 0:01:36.4]} 17... c5 {[%clk 0:00:17]} 18. dxc5 {[%clk
0:01:25.6]} 18... Nxc5 {[%clk 0:00:16.8]} 19. fxe5 {[%clk 0:01:23.1]} 19... dxe5
{[%clk 0:00:17]} 20. Qf2 {[%clk 0:01:10.9]} 20... Nbd7 {[%clk 0:00:16.7]} 21. a3
{[%clk 0:00:54.1]} 21... f6 {[%clk 0:00:16.8]} 22. Nf3 {[%clk 0:00:52]} 22...
Rd8 {[%clk 0:00:16.5]} 23. h5 {[%clk 0:00:49.2]} 23... Qc6 {[%clk 0:00:16]} 24.
Nd5 {[%clk 0:00:44.9]} 24... Bd6 {[%clk 0:00:14.5]} 25. Rdg1 {[%clk 0:00:35.4]}
25... Nb6 {[%clk 0:00:14.5]} 26. Nxb6+ {[%clk 0:00:31.3]} 26... Qxb6 {[%clk
0:00:14.6]} 27. Rxg7 {[%clk 0:00:31]} 27... Rd7 {[%clk 0:00:14.2]} 28. Rxd7
{[%clk 0:00:28.9]} 28... Kxd7 {[%clk 0:00:14.3]} 29. Qg3 {[%clk 0:00:25.1]}
29... Re8 {[%clk 0:00:13.6]} 30. Qg4+ {[%clk 0:00:24.4]} 30... Kc7 {[%clk
0:00:12.9]} 31. h6 {[%clk 0:00:24.6]} 31... Bc8 {[%clk 0:00:12.8]} 32. Qg7+
{[%clk 0:00:23.6]} 32... Re7 {[%clk 0:00:12.5]} 33. Qxf6 {[%clk 0:00:24.1]}
33... Be6 {[%clk 0:00:12.1]} 34. h7 {[%clk 0:00:23.4]} 34... Nd7 {[%clk
0:00:11.9]} 35. Qg6 {[%clk 0:00:20.3]} 35... Qxe3 {[%clk 0:00:11.5]} 36. h8=Q
{[%clk 0:00:19.4]} 36... Qxf3 {[%clk 0:00:11.5]} 37. Qa8 {[%clk 0:00:18]} 37...
Qxh1+ {[%clk 0:00:10.6]} 38. Bf1 {[%clk 0:00:15.4]} 38... Qxf1# {[%clk
0:00:10.4]} 0-1

[Event "Early-Titled-Tuesday-Blitz-October-10-2023"]
[Site "Chess.com"]
[Date "2023.10.10"]
[Round "3"]
[White "Vision_64"]
[Black "JAN2404"]
[Result "1-0"]
[WhiteElo "2351"]
[BlackElo "2067"]
[TimeControl "180+1"]
[EndTime "8:27:56 PDT"]
[Termination "Vision_64 won on time"]

1. f4 {[%clk 0:03:00.9]} 1... c5 {[%clk 0:03:00.3]} 2. Nf3 {[%clk 0:02:58.5]}
2... d6 {[%clk 0:02:59]} 3. g3 {[%clk 0:02:56.8]} 3... Nc6 {[%clk 0:02:59.3]} 4.
Bg2 {[%clk 0:02:56.8]} 4... Nf6 {[%clk 0:03:00.2]} 5. d3 {[%clk 0:02:57.2]} 5...
d5 {[%clk 0:02:57.1]} 6. O-O {[%clk 0:02:48.1]} 6... Bf5 {[%clk 0:02:45.2]} 7.
e3 {[%clk 0:02:33]} 7... Qd7 {[%clk 0:02:42.1]} 8. Re1 {[%clk 0:02:26.9]} 8...
e6 {[%clk 0:02:25.2]} 9. b3 {[%clk 0:02:26.8]} 9... Be7 {[%clk 0:02:24]} 10. Bb2
{[%clk 0:02:26.9]} 10... O-O {[%clk 0:02:23.8]} 11. Nbd2 {[%clk 0:02:27]} 11...
Rac8 {[%clk 0:01:45.2]} 12. e4 {[%clk 0:02:25.9]} 12... dxe4 {[%clk 0:01:38.5]}
13. dxe4 {[%clk 0:02:26.8]} 13... Bg4 {[%clk 0:01:33.1]} 14. Nc4 {[%clk
0:02:06.1]} 14... Rcd8 {[%clk 0:01:29.2]} 15. Qe2 {[%clk 0:01:56.3]} 15... a6
{[%clk 0:00:40.6]} 16. Rad1 {[%clk 0:01:48]} 16... Qc7 {[%clk 0:00:35.2]} 17. h3
{[%clk 0:01:28.7]} 17... Bxf3 {[%clk 0:00:34.3]} 18. Qxf3 {[%clk 0:01:27.4]}
18... b5 {[%clk 0:00:30.8]} 19. Ne5 {[%clk 0:01:26.6]} 19... Nd4 {[%clk
0:00:20.2]} 20. Qf2 {[%clk 0:01:25.3]} 20... Nc6 {[%clk 0:00:15.9]} 21. Nxc6
{[%clk 0:01:08.9]} 21... Qxc6 {[%clk 0:00:16.8]} 22. e5 {[%clk 0:01:09.5]} 22...
Nd5 {[%clk 0:00:17]} 23. c4 {[%clk 0:01:09.4]} 23... bxc4 {[%clk 0:00:16]} 24.
bxc4 {[%clk 0:01:09.3]} 24... Qb6 {[%clk 0:00:11.4]} 25. cxd5 {[%clk 0:01:08.6]}
25... exd5 {[%clk 0:00:12.3]} 26. Bxd5 {[%clk 0:01:07.3]} 26... Rb8 {[%clk
0:00:08.5]} 27. Bc3 {[%clk 0:01:05.8]} 27... Rfd8 {[%clk 0:00:04.8]} 28. Bc4
{[%clk 0:00:55]} 28... Qg6 {[%clk 0:00:03]} 29. Kh2 {[%clk 0:00:48.2]} 29... h5
{[%clk 0:00:03.4]} 30. e6 {[%clk 0:00:41.3]} 30... f6 {[%clk 0:00:02.9]} 31. Rd7
{[%clk 0:00:38.1]} 31... Rxd7 {[%clk 0:00:02.6]} 32. exd7+ {[%clk 0:00:38.4]}
32... Kh8 {[%clk 0:00:03.5]} 33. Rxe7 {[%clk 0:00:36.7]} 33... Rd8 {[%clk
0:00:03.9]} 34. Qe2 {[%clk 0:00:29.7]} 34... Kh7 {[%clk 0:00:02.9]} 35. Bd3
{[%clk 0:00:29.3]} 1-0

[Event "Early-Titled-Tuesday-Blitz-October-10-2023"]
[Site "Chess.com"]
[Date "2023.10.10"]
[Round "3"]
[White "Fan_Of_Chucky"]
[Black "jcibarra"]
[Result "1-0"]
[WhiteElo "2536"]
[BlackElo "2921"]
[TimeControl "180+1"]
[EndTime "8:27:57 PDT"]
[Termination "Fan_Of_Chucky won by resignation"]

1. d4 {[%clk 0:03:00.9]} 1... Nf6 {[%clk 0:02:59.1]} 2. c4 {[%clk 0:03:00.9]}
2... d6 {[%clk 0:02:56.9]} 3. Nc3 {[%clk 0:02:59.4]} 3... e5 {[%clk 0:02:56.5]}
4. Nf3 {[%clk 0:02:56.2]} 4... e4 {[%clk 0:02:56.1]} 5. Ng5 {[%clk 0:02:55.3]}
5... Qe7 {[%clk 0:02:56.1]} 6. g3 {[%clk 0:02:53.1]} 6... h6 {[%clk 0:02:55.4]}
7. Nh3 {[%clk 0:02:52]} 7... c6 {[%clk 0:02:55.5]} 8. Bg2 {[%clk 0:02:47.7]}
8... Bf5 {[%clk 0:02:52.9]} 9. O-O {[%clk 0:02:46.7]} 9... Qd7 {[%clk
0:02:42.5]} 10. Nf4 {[%clk 0:02:27.9]} 10... g5 {[%clk 0:02:42]} 11. g4 {[%clk
0:01:55]} 11... Bxg4 {[%clk 0:02:15.7]} 12. f3 {[%clk 0:01:55.1]} 12... exf3
{[%clk 0:02:08.1]} 13. exf3 {[%clk 0:01:56]} 13... Bf5 {[%clk 0:02:08.3]} 14.
Nfe2 {[%clk 0:01:51]} 14... Bg7 {[%clk 0:02:05.3]} 15. Ng3 {[%clk 0:01:50.6]}
15... Bg6 {[%clk 0:02:04.3]} 16. f4 {[%clk 0:01:32.5]} 16... g4 {[%clk
0:01:43.5]} 17. f5 {[%clk 0:01:24.2]} 17... Bh7 {[%clk 0:01:43.8]} 18. Bf4
{[%clk 0:01:24.8]} 18... Na6 {[%clk 0:01:31.6]} 19. Qd2 {[%clk 0:01:24.6]} 19...
O-O-O {[%clk 0:01:25.8]} 20. d5 {[%clk 0:01:23.4]} 20... cxd5 {[%clk 0:01:15.7]}
21. Nb5 {[%clk 0:01:22.1]} 21... Kb8 {[%clk 0:01:01]} 22. Bxd6+ {[%clk
0:01:10.1]} 22... Ka8 {[%clk 0:01:00.5]} 23. Qf2 {[%clk 0:01:11]} 23... b6
{[%clk 0:00:33.8]} 24. Nh5 {[%clk 0:01:09.5]} 24... Qc6 {[%clk 0:00:18.3]} 25.
Nxf6 {[%clk 0:01:03.2]} 25... Rxd6 {[%clk 0:00:18.9]} 26. Nxd5 {[%clk
0:00:43.3]} 26... Kb8 {[%clk 0:00:16.5]} 27. Ne7 {[%clk 0:00:32.2]} 27... Qd7
{[%clk 0:00:15.4]} 28. Nxd6 {[%clk 0:00:29]} 28... Qxd6 {[%clk 0:00:13.8]} 29.
Nc6+ {[%clk 0:00:28.6]} 29... Kc7 {[%clk 0:00:14.3]} 30. Nxa7 {[%clk 0:00:28.6]}
30... Bd4 {[%clk 0:00:14.1]} 31. Nb5+ {[%clk 0:00:29.1]} 31... Kd7 {[%clk
0:00:13.9]} 32. Qxd4 {[%clk 0:00:28.5]} 32... Qxd4+ {[%clk 0:00:13.6]} 33. Nxd4
{[%clk 0:00:29.4]} 33... Rc8 {[%clk 0:00:11.3]} 34. b3 {[%clk 0:00:27.4]} 34...
Ke7 {[%clk 0:00:07.9]} 35. Rad1 {[%clk 0:00:25.6]} 35... Kf6 {[%clk 0:00:07.8]}
36. Rfe1 {[%clk 0:00:26.5]} 36... Nc5 {[%clk 0:00:07.3]} 37. Nc6 {[%clk
0:00:27]} 37... Bxf5 {[%clk 0:00:05.7]} 38. Rf1 {[%clk 0:00:27.5]} 38... Kg5
{[%clk 0:00:02.3]} 39. Rxf5+ {[%clk 0:00:27.6]} 39... Kxf5 {[%clk 0:00:02.1]}
40. Ne7+ {[%clk 0:00:28.3]} 1-0

[Event "Early-Titled-Tuesday-Blitz-October-10-2023"]
[Site "Chess.com"]
[Date "2023.10.10"]
[Round "3"]
[White "SharapovEvgeny"]
[Black "TigrVShlyape"]
[Result "0-1"]
[WhiteElo "2614"]
[BlackElo "2938"]
[TimeControl "180+1"]
[EndTime "8:27:58 PDT"]
[Termination "TigrVShlyape won by resignation"]

1. e4 {[%clk 0:03:00]} 1... c5 {[%clk 0:02:59.7]} 2. Nf3 {[%clk 0:02:59.8]} 2...
e6 {[%clk 0:03:00.3]} 3. d4 {[%clk 0:02:59.8]} 3... cxd4 {[%clk 0:03:00.9]} 4.
Nxd4 {[%clk 0:03:00.2]} 4... a6 {[%clk 0:03:01.5]} 5. Bd3 {[%clk 0:02:59.7]}
5... g6 {[%clk 0:03:00.5]} 6. O-O {[%clk 0:02:59]} 6... Bg7 {[%clk 0:03:01.1]}
7. Nb3 {[%clk 0:02:58.9]} 7... Nf6 {[%clk 0:02:59.6]} 8. c4 {[%clk 0:02:58.6]}
8... d6 {[%clk 0:02:58.3]} 9. Nc3 {[%clk 0:02:58.4]} 9... O-O {[%clk 0:02:58.4]}
10. Be3 {[%clk 0:02:56.5]} 10... b6 {[%clk 0:02:57.7]} 11. f3 {[%clk 0:02:56.1]}
11... Nbd7 {[%clk 0:02:56]} 12. Qd2 {[%clk 0:02:56.3]} 12... Qc7 {[%clk
0:02:51.3]} 13. Rfc1 {[%clk 0:02:54.9]} 13... Bb7 {[%clk 0:02:48.7]} 14. Bf1
{[%clk 0:02:54.7]} 14... Rfd8 {[%clk 0:02:47.5]} 15. Qf2 {[%clk 0:02:53.9]}
15... Rac8 {[%clk 0:02:45.2]} 16. Nd4 {[%clk 0:02:53.5]} 16... Qb8 {[%clk
0:02:44.7]} 17. Rab1 {[%clk 0:02:53.2]} 17... Qa8 {[%clk 0:02:36.9]} 18. b4
{[%clk 0:02:52.1]} 18... d5 {[%clk 0:02:33.8]} 19. cxd5 {[%clk 0:02:50.1]} 19...
exd5 {[%clk 0:02:33.7]} 20. Nxd5 {[%clk 0:02:49.9]} 20... Nxd5 {[%clk
0:02:33.5]} 21. exd5 {[%clk 0:02:50.1]} 21... Bxd5 {[%clk 0:02:34]} 22. Nb3
{[%clk 0:02:37.7]} 22... b5 {[%clk 0:02:33.4]} 23. Nc5 {[%clk 0:02:26.6]} 23...
Nxc5 {[%clk 0:02:29.9]} 24. Bxc5 {[%clk 0:02:25.5]} 24... Be6 {[%clk 0:02:27.1]}
25. Rd1 {[%clk 0:02:21.8]} 25... h5 {[%clk 0:02:25.7]} 26. a3 {[%clk 0:02:14.5]}
26... Rd5 {[%clk 0:02:24.5]} 27. Rxd5 {[%clk 0:02:12.5]} 27... Qxd5 {[%clk
0:02:24.5]} 28. Kh1 {[%clk 0:02:07.1]} 28... Bf5 {[%clk 0:02:17.8]} 29. Re1
{[%clk 0:02:01.1]} 29... Rd8 {[%clk 0:02:17]} 30. Qe3 {[%clk 0:01:52.2]} 30...
Qa2 {[%clk 0:02:11.4]} 31. Qe7 {[%clk 0:01:43.7]} 31... Rd7 {[%clk 0:01:56.5]}
32. Qe3 {[%clk 0:01:32.7]} 32... Kh7 {[%clk 0:01:56]} 33. h3 {[%clk 0:01:26.7]}
33... Bh6 {[%clk 0:01:54.1]} 34. Qe8 {[%clk 0:01:18.2]} 34... h4 {[%clk
0:01:33.6]} 35. Re7 {[%clk 0:01:08.1]} 35... Rxe7 {[%clk 0:01:32.1]} 36. Qxe7
{[%clk 0:01:07.9]} 36... Qa1 {[%clk 0:01:16.3]} 37. Qe2 {[%clk 0:00:48.3]} 37...
Bf4 {[%clk 0:01:12.6]} 38. Bf2 {[%clk 0:00:43.5]} 38... Be6 {[%clk 0:01:11.8]}
39. Qe1 {[%clk 0:00:39.3]} 39... Qxe1 {[%clk 0:01:10.6]} 40. Bxe1 {[%clk
0:00:39.2]} 40... g5 {[%clk 0:01:09.8]} 41. Kg1 {[%clk 0:00:39.3]} 41... Bc1
{[%clk 0:01:09.2]} 42. Kf2 {[%clk 0:00:33.7]} 42... Bxa3 {[%clk 0:01:07.3]} 43.
Ke3 {[%clk 0:00:34.1]} 43... Bb2 {[%clk 0:01:05.8]} 44. Bd3+ {[%clk 0:00:30.1]}
44... f5 {[%clk 0:01:05.3]} 45. f4 {[%clk 0:00:28.7]} 45... Bc1+ {[%clk
0:01:05.5]} 46. Kd4 {[%clk 0:00:27.8]} 46... Bxf4 {[%clk 0:01:05.4]} 47. Kc5
{[%clk 0:00:27.3]} 47... Kg6 {[%clk 0:01:03.4]} 48. Kb6 {[%clk 0:00:27.1]} 48...
Bd5 {[%clk 0:01:03.2]} 49. Bf1 {[%clk 0:00:25]} 49... Be5 {[%clk 0:00:59.5]} 50.
Kxa6 {[%clk 0:00:24.4]} 50... Bc4 {[%clk 0:00:59.3]} 51. Bxc4 {[%clk 0:00:23.8]}
51... bxc4 {[%clk 0:00:59.8]} 52. b5 {[%clk 0:00:24.2]} 52... c3 {[%clk
0:00:57.7]} 53. b6 {[%clk 0:00:23.6]} 53... c2 {[%clk 0:00:57.8]} 54. Bd2 {[%clk
0:00:23.8]} 54... Bf4 {[%clk 0:00:57.5]} 55. Bxf4 {[%clk 0:00:22.4]} 55... gxf4
{[%clk 0:00:57.5]} 56. b7 {[%clk 0:00:23.1]} 56... c1=Q {[%clk 0:00:57.6]} 57.
b8=Q {[%clk 0:00:23.7]} 57... Qa1+ {[%clk 0:00:52.2]} 58. Kb7 {[%clk 0:00:23.6]}
58... Qb2+ {[%clk 0:00:52.6]} 59. Kc8 {[%clk 0:00:23.9]} 59... Qxb8+ {[%clk
0:00:52.9]} 60. Kxb8 {[%clk 0:00:24.4]} 60... f3 {[%clk 0:00:53.3]} 61. gxf3
{[%clk 0:00:24.6]} 61... Kg5 {[%clk 0:00:53.6]} 0-1